bitfinex-derivatives/quotes_SOLF0:USTF0_20241127
["timestamp","ask_amount","ask_price","bid_price","bid_amount"]
[1732711590204,10.54827851,234.36,234.25,2.1343]
[1732711590413,2.1334,234.35,234.26,2.14]
[1732711590619,10.54827851,234.36,234.26,2.14]
[1732711591113,10.54827851,234.36,234.22,10.54827851]
[1732711591315,10.54827851,234.39,234.28,2.134]
[1732711591518,2.1333,234.37,234.28,2.134]
[1732711591715,10.54827851,234.39,234.29,2.14]
[1732711591907,10.54827851,234.39,234.22,10.54827851]
[1732711591908,10.54827851,234.36,234.22,10.54827851]
[1732711592107,10.54827851,234.33,234.19,10.54827851]
[1732711592386,10.54827851,234.33,234.2,2.14]
[1732711593112,12.68197851,234.33,234.24,2.1344]
[1732711593305,10.54827851,234.33,234.19,10.54827851]
[1732711593510,2.1338,234.32,234.22,2.1346]
[1732711594121,10.54827851,234.33,234.22,2.1346]
[1732711594307,10.54827851,234.33,234.23,2.1345]
[1732711594714,10.54827851,234.33,234.19,10.54827851]
[1732711594715,10.54827851,234.3,234.15,33.32]
[1732711594910,10.54827851,234.27,234.16,2.14]
[1732711595119,10.54827851,234.27,234.11,10.54827851]
[1732711595120,10.54827851,234.27,234.17,2.14]
[1732711595517,10.54827851,234.3,234.17,2.14]
[1732711595814,10.54827851,234.27,234.17,2.14]
[1732711596010,10.54827851,234.27,234.18,2.14]
[1732711596211,10.54827851,234.24,234.16,2.14]
[1732711596410,2.1345,234.23,234.16,2.14]
[1732711596612,10.54827851,234.24,234.16,2.14]
[1732711597210,10.54827851,234.24,234.16,4.2751]
[1732711597412,2.1343,234.25,234.16,2.14]
[1732711597614,10.54827851,234.3,234.16,2.14]
[1732711597979,12.68217851,234.3,234.21,2.1347]
[1732711598243,12.68217851,234.3,234.21,2.14]
[1732711598346,10.54827851,234.3,234.21,2.14]
[1732711598513,10.54827851,234.3,234.23,2.1345]
[1732711598929,10.54827851,234.3,234.21,2.14]
[1732711598930,12.85,234.34,234.21,2.14]
[1732711599110,2.1336,234.33,234.21,2.14]
[1732711599610,10.54827851,234.35,234.21,2.14]
[1732711599814,10.54827851,234.35,234.27,2.1341]
[1732711600015,10.54827851,234.35,234.27,2.14]
[1732711600808,2.1334,234.36,234.27,2.14]
[1732711601018,10.54827851,234.38,234.27,2.14]
[1732711601413,2.1334,234.36,234.28,2.134]
[1732711601614,10.54827851,234.38,234.27,2.14]
[1732711601915,10.54827851,234.38,234.3,2.1338]
[1732711602232,10.54827851,234.38,234.27,2.14]
[1732711602615,12.68137851,234.38,234.27,2.14]
[1732711603614,12.68137851,234.38,234.3,2.1338]
[1732711603815,10.54827851,234.38,234.27,2.14]
[1732711604207,10.54827851,234.35,234.27,2.14]
[1732711605012,2.1336,234.34,234.27,2.14]
[1732711605215,10.54827851,234.35,234.27,2.14]
[1732711605626,2.1335,234.34,234.27,2.14]
[1732711607320,12.68167851,234.35,234.27,4.2741]
[1732711608022,2.1335,234.34,234.27,2.14]
[1732711608518,10.54827851,234.35,234.27,4.2741]
[1732711609221,10.54827851,234.35,234.28,2.14]
[1732711610017,10.54827851,234.38,234.28,2.14]
[1732711610217,17.08479665,234.42,234.28,2.14]
[1732711610218,10.54827851,234.35,234.28,2.14]
[1732711610927,2.1335,234.34,234.28,2.14]
[1732711611426,10.54827851,234.32,234.17,10.54827851]
[1732711611627,10.54827851,234.32,234.18,2.14]
[1732711612218,2.1339,234.3,234.21,2.1346]
[1732711612727,10.54827851,234.32,234.21,2.1346]
[1732711613127,2.1339,234.3,234.21,2.1346]
[1732711613336,10.54827851,234.35,234.24,2.1344]
[1732711613524,10.54827851,234.35,234.09,14.96561418]
[1732711613525,10.54827851,234.35,234.25,2.14]
[1732711613827,2.1336,234.34,234.26,2.14]
[1732711614023,2.1336,234.34,234.27,2.14]
[1732711614229,2.1334,234.36,234.27,2.14]
[1732711614418,10.54827851,234.38,234.27,2.14]
[1732711614620,10.54827851,234.38,234.27,4.2741]
[1732711615926,2.1334,234.35,234.27,4.2741]
[1732711616127,2.1334,234.35,234.27,2.14]
[1732711616730,12.85,234.49,234.29,10.54827851]
[1732711616943,10.54827851,234.43,234.29,10.54827851]
[1732711617424,2.133,234.4,234.31,2.1338]
[1732711617623,2.133,234.4,234.26,10.54827851]
[1732711617624,23.39827851,234.43,234.32,2.14]
[1732711617827,23.39827851,234.43,234.3,2.14]
[1732711617828,10.54827851,234.37,234.3,2.14]
[1732711618028,10.54827851,234.37,234.2,10.54827851]
[1732711618234,2.1335,234.34,234.21,2.14]
[1732711618528,10.54827851,234.34,234.22,2.14]
[1732711618729,2.1337,234.32,234.22,2.14]
[1732711619246,10.54827851,234.34,234.14,2.71265453]
[1732711619429,10.54827851,234.34,234.12,4.271]
[1732711619430,10.54827851,234.34,234.17,10.54827851]
[1732711619628,10.54827851,234.34,234.22,2.1346]
[1732711619821,10.54827851,234.34,234.23,2.14]
[1732711620219,2.1336,234.33,234.23,2.14]
[1732711620536,10.54827851,234.36,234.23,2.14]
[1732711620737,2.1336,234.34,234.23,2.14]
[1732711620924,10.54827851,234.36,234.23,2.14]
[1732711621832,9.38584069,234.35,234.23,2.14]
[1732711622038,2.1336,234.33,234.25,2.1343]
[1732711622235,12.68827851,234.39,234.24,10.54827851]
[1732711622458,9.39626448,234.38,234.24,10.54827851]
[1732711622628,9.39626448,234.38,234.27,10.54827851]
[1732711622932,9.39626448,234.38,234.28,2.16]
[1732711623127,2.1331,234.39,234.3,2.1338]
[1732711623331,9.40096979,234.38,234.3,2.1338]
[1732711623528,9.40096979,234.38,234.28,2.16]
[1732711623729,9.40096979,234.38,234.31,2.1337]
[1732711624024,10.54827851,234.42,234.28,2.16]
[1732711624229,17.44964483,234.41,234.28,2.16]
[1732711624527,17.44964483,234.4,234.28,2.16]
[1732711624728,11.53814171,234.39,234.28,2.16]
[1732711624929,9.40504171,234.38,234.28,2.16]
[1732711625129,10.54827851,234.42,234.28,2.16]
[1732711625340,17.44812485,234.41,234.28,2.16]
[1732711625538,17.44812485,234.4,234.28,2.16]
[1732711625846,11.53538492,234.4,234.31,2.1337]
[1732711626225,9.40238492,234.39,234.28,2.16]
[1732711626426,9.40238492,234.41,234.28,2.16]
[1732711626627,17.45106771,234.4,234.3,10.54827851]
[1732711626829,9.40238492,234.39,234.3,10.54827851]
[1732711627026,9.40238492,234.38,234.34,2.1334]
[1732711627239,4.2628,234.58,234.36,10.54827851]
[1732711627240,10.54827851,234.52,234.36,10.54827851]
[1732711627530,2.50201,234.46,234.35,2.1334]
[1732711627730,2.50201,234.46,234.37,2.16]
[1732711627731,17.45970446,234.45,234.37,2.16]
[1732711627930,17.45970446,234.44,234.33,10.54827851]
[1732711628133,9.40850575,234.43,234.34,2.16]
[1732711628329,9.40850575,234.42,234.33,10.54827851]
[1732711628534,9.40850575,234.41,234.34,2.16]
[1732711628830,9.40850575,234.45,234.34,2.16]
[1732711629030,10.91778851,234.46,234.34,2.16]
[1732711629230,23.76778851,234.46,234.34,2.16]
[1732711629429,2.1325,234.45,234.34,4.2935]
[1732711630034,2.1326,234.44,234.34,4.2935]
[1732711630731,17.45734119,234.43,234.35,2.1334]
[1732711630854,9.4072934,234.42,234.35,2.1334]
[1732711631034,9.4072934,234.42,234.34,2.16]
[1732711631533,9.4072934,234.41,234.34,2.16]
[1732711631742,13.21951,234.46,234.34,2.16]
[1732711631925,10.18104185,234.45,234.34,4.2934]
[1732711632138,8.04854185,234.44,234.34,4.2934]
[1732711632334,9.40572639,234.43,234.34,4.2934]
[1732711632629,8.04854185,234.42,234.34,4.2934]
[1732711632934,9.40572639,234.41,234.34,4.2934]
[1732711633339,9.40572639,234.4,234.34,4.2934]
[1732711633534,2.1326,234.44,234.34,4.2934]
[1732711633737,8.04825222,234.43,234.34,4.2934]
[1732711634134,9.40520002,234.42,234.34,4.2934]
[1732711634534,9.40520002,234.41,234.34,4.2934]
[1732711634731,13.21951,234.46,234.32,2.1336]
[1732711634732,9.40520002,234.4,234.32,2.1336]
[1732711634932,9.40520002,234.39,234.24,10.54827851]
[1732711635137,10.54827851,234.41,234.25,2.16]
[1732711635138,9.40520002,234.38,234.25,2.16]
[1732711635332,2.1333,234.37,234.27,2.1341]
[1732711635538,9.40520002,234.36,234.27,2.1341]
[1732711635938,9.40520002,234.36,234.26,2.1342]
[1732711636144,9.40520002,234.36,234.25,2.16]
[1732711636641,9.40520002,234.36,234.27,2.1341]
[1732711636843,9.40520002,234.35,234.27,2.1341]
[1732711637150,12.68137851,234.38,234.22,33.3]
[1732711637151,22.25520002,234.37,234.22,33.3]
[1732711637342,12.85,234.34,234.23,2.16]
[1732711637536,17.45031451,234.33,234.23,2.16]
[1732711637843,19.95347853,234.32,234.24,2.16]
[1732711638052,9.40520002,234.31,234.22,2.16]
[1732711638239,22.25520002,234.31,234.17,2.135]
[1732711638436,10.54827851,234.29,234.18,2.16]
[1732711638739,17.45090652,234.28,234.18,2.16]
[1732711639041,9.40520002,234.27,234.19,2.1348]
[1732711639243,10.54827851,234.32,234.19,2.16]
[1732711639538,17.44449383,234.31,234.19,2.16]
[1732711639843,17.44449383,234.3,234.19,2.16]
[1732711640043,17.44449383,234.29,234.19,2.16]
[1732711640250,17.44449383,234.28,234.19,2.16]
[1732711640637,9.40059591,234.27,234.19,2.16]
[1732711640945,2.1338,234.31,234.21,2.1347]
[1732711641243,17.44766559,234.3,234.19,2.16]
[1732711641433,17.44766559,234.29,234.19,2.16]
[1732711641642,9.40230736,234.28,234.21,2.1346]
[1732711641939,2.1338,234.32,234.19,2.16]
[1732711642141,9.40480357,234.31,234.22,2.1345]
[1732711642342,9.40480357,234.31,234.19,2.16]
[1732711642540,12.68197851,234.32,234.19,2.16]
[1732711642944,9.40811071,234.31,234.22,2.1346]
[1732711643650,9.40811071,234.31,234.23,2.1345]
[1732711644141,11.54191071,234.31,234.19,2.16]
[1732711644344,10.54827851,234.32,234.22,2.1346]
[1732711644645,2.1339,234.3,234.19,2.16]
[1732711644851,10.54827851,234.32,234.2,2.16]
[1732711645138,2.1341,234.28,234.2,2.16]
[1732711645342,12.85,234.31,234.2,2.16]
[1732711645543,9.40817074,234.3,234.2,2.16]
[1732711646144,2.1341,234.28,234.2,4.2948]
[1732711647450,2.134,234.29,234.2,4.2948]
[1732711648245,12.85,234.31,234.2,4.2948]
[1732711648563,2.1341,234.28,234.2,4.2948]
[1732711649148,2.134,234.29,234.2,4.2948]
[1732711649545,2.1339,234.3,234.22,2.1346]
[1732711649947,12.85,234.31,234.2,2.16]
[1732711650150,9.40858403,234.3,234.2,2.16]
[1732711650754,10.54827851,234.23,234.07,33.3]
[1732711650954,10.54827851,234.2,234.08,2.16]
[1732711651149,10.54827851,234.17,234.08,2.16]
[1732711651742,2.1352,234.16,234.08,4.2958]
[1732711651944,11.53047456,234.16,234.08,4.2958]
[1732711652143,2.1352,234.16,234.08,2.16]
[1732711652440,10.54827851,234.17,234.08,2.16]
[1732711652749,2.135,234.18,234.08,2.16]
[1732711652943,9.38824009,234.17,234.08,2.16]
[1732711653149,12.70827851,234.23,234.09,10.54827851]
[1732711653573,2.1346,234.22,234.13,2.1353]
[1732711653892,2.1346,234.22,234.13,2.16]
[1732711653893,9.38620853,234.22,234.13,2.16]
[1732711654153,12.70827851,234.23,234.13,2.16]
[1732711654846,12.70827851,234.23,234.09,10.54827851]
[1732711655041,9.38211606,234.22,234.1,2.16]
[1732711655249,2.1348,234.21,234.11,2.1356]
[1732711655446,10.54827851,234.22,234.11,2.1356]
[1732711656053,10.54827851,234.22,234.1,2.16]
[1732711656348,10.54827851,234.22,234.1,4.2957]
[1732711656652,2.1348,234.2,234.1,2.16]
[1732711656887,10.54827851,234.22,234.1,2.16]
[1732711657169,9.36949639,234.21,234.1,2.16]
[1732711657450,10.54827851,234.22,234.14,2.1353]
[1732711657755,10.54827851,234.22,234.15,2.16]
[1732711658053,10.54827851,234.22,234.15,4.2952]
[1732711658651,10.54827851,234.22,234.15,2.1352]
[1732711658849,10.54827851,234.22,234.13,2.16]
[1732711659047,10.54827851,234.22,234.12,4.2954]
[1732711659346,2.1348,234.2,234.12,4.2954]
[1732711659552,2.1348,234.2,234.13,2.1354]
[1732711659747,10.54827851,234.22,234.12,2.16]
[1732711659943,10.54827851,234.22,234.15,2.1352]
[1732711660145,10.54827851,234.22,234.12,2.16]
[1732711661054,2.1348,234.2,234.12,4.2955]
[1732711661352,10.54827851,234.22,234.12,4.2955]
[1732711661555,2.1348,234.21,234.13,2.1354]
[1732711663662,10.54827851,234.22,234.13,2.1354]
[1732711663865,2.1348,234.2,234.13,2.1354]
[1732711664559,2.1348,234.2,234.12,4.2955]
[1732711665054,2.1351,234.17,234.09,2.1357]
[1732711665365,10.54827851,234.19,234.1,2.16]
[1732711666055,10.54827851,234.19,234.12,2.1355]
[1732711666856,12.68317851,234.19,234.12,2.1355]
[1732711668262,12.68317851,234.19,234.1,2.16]
[1732711668460,12.68317851,234.19,234.13,2.1354]
[1732711669558,10.54827851,234.19,234.1,2.16]
[1732711669762,2.1352,234.16,234.1,4.2957]
[1732711670429,2.1352,234.16,234.03,10.54827851]
[1732711670430,10.54827851,234.16,234.08,2.16]
[1732711670765,10.54827851,234.16,234.07,2.16]
[1732711671362,10.54827851,234.17,234.07,2.16]
[1732711671761,10.54827851,234.2,234.07,2.16]
[1732711672266,2.135,234.18,234.12,2.1354]
[1732711672460,10.54827851,234.2,234.07,2.16]
[1732711672854,2.1349,234.19,234.12,2.1355]
[1732711673160,2.1349,234.19,234.07,2.16]
[1732711673367,17.86872494,234.28,234.07,2.16]
[1732711673368,10.54827851,234.23,234.07,2.16]
[1732711673565,10.54827851,234.23,234.09,10.54827851]
[1732711673805,10.54827851,234.26,234.09,10.54827851]
[1732711674071,9.35093722,234.25,234.09,10.54827851]
[1732711674273,2.1345,234.23,234.09,10.54827851]
[1732711674862,2.1345,234.23,234.14,2.1352]
[1732711675086,2.1345,234.23,234.15,2.16]
[1732711675369,10.54827851,234.2,234.1,4.2956]
[1732711675576,10.54827851,234.2,234.11,2.16]
[1732711675763,2.1349,234.19,234.11,2.16]
[1732711677319,2.1349,234.19,234.1,2.1356]
[1732711677320,2.1352,234.16,234.04,10.54827851]
[1732711677470,10.54827851,234.2,234.05,2.16]
[1732711678071,2.135,234.18,234.09,2.1357]
[1732711678267,10.54827851,234.2,234.09,2.1357]
[1732711678467,9.37121618,234.19,234.09,2.1357]
[1732711679071,2.1351,234.17,234.09,2.1357]
[1732711679270,2.1351,234.17,234.05,2.16]
[1732711679673,12.68307851,234.2,234.05,2.16]
[1732711679880,10.54827851,234.2,234.1,2.1356]
[1732711680080,9.37486604,234.19,234.1,4.2956]
[1732711680658,11.50976604,234.19,234.1,4.2956]
[1732711680779,2.1349,234.19,234.1,4.2956]
[1732711680994,10.54827851,234.2,234.1,4.2956]
[1732711681772,9.38506144,234.19,234.1,4.2956]
[1732711681877,11.51996144,234.19,234.1,4.2956]
[1732711682680,19.5547569,234.18,234.1,4.2956]
[1732711682978,9.38506144,234.17,234.1,2.16]
[1732711683679,9.38506144,234.17,234.1,4.2957]
[1732711683878,9.38506144,234.16,234.1,4.2957]
[1732711684108,10.54827851,234.2,234.1,4.2957]
[1732711684281,17.42745294,234.19,234.1,4.2957]
[1732711684483,17.42745294,234.18,234.13,2.1353]
[1732711684680,10.54827851,234.23,234.1,2.16]
[1732711684879,17.42933001,234.22,234.1,2.16]
[1732711685080,17.42933001,234.21,234.1,2.16]
[1732711685279,17.42933001,234.2,234.1,2.16]
[1732711685475,17.42933001,234.19,234.1,2.16]
[1732711686476,17.43336834,234.2,234.14,2.1353]
[1732711686783,9.39500914,234.19,234.15,2.14]
[1732711687081,10.54827851,234.26,234.16,2.1351]
[1732711687379,2.1344,234.24,234.15,2.14]
[1732711687571,17.43933226,234.23,234.15,2.14]
[1732711687777,17.43933226,234.22,234.15,2.14]
[1732711688080,9.39794527,234.21,234.15,4.2752]
[1732711688473,10.54827851,234.26,234.19,2.1349]
[1732711688474,9.39794527,234.23,234.19,2.1349]
[1732711688677,8.04601612,234.22,234.2,2.14]
[1732711689083,10.54827851,234.29,234.2,2.14]
[1732711689283,8.0475685,234.28,234.2,2.14]
[1732711689882,17.45249673,234.28,234.2,2.14]
[1732711690084,9.40492823,234.27,234.2,4.2747]
[1732711690282,9.40492823,234.28,234.2,4.2747]
[1732711690486,9.40492823,234.26,234.2,4.2747]
[1732711690780,9.40492823,234.26,234.2,2.14]
[1732711691274,9.40492823,234.28,234.2,2.14]
[1732711691682,8.05101764,234.27,234.2,4.2747]
[1732711691875,8.05101764,234.27,234.2,2.14]
[1732711692073,10.54827851,234.26,234.2,2.14]
[1732711692274,10.54827851,234.26,234.15,2.14]
[1732711692878,2.1344,234.24,234.14,2.1352]
[1732711693074,10.54827851,234.2,234.12,2.14]
[1732711693387,10.54827851,234.2,234.11,2.14]
[1732711693579,9.40492823,234.19,234.11,2.14]
[1732711693983,9.40492823,234.19,234.11,4.2756]
[1732711694381,8.05101764,234.18,234.11,4.2756]
[1732711694582,9.40492823,234.17,234.11,4.2756]
[1732711694982,9.40492823,234.16,234.11,4.2756]
[1732711695183,10.54827851,234.2,234.12,2.1355]
[1732711695383,17.46487914,234.19,234.11,2.14]
[1732711695582,17.46487914,234.18,234.11,2.14]
[1732711695786,9.41171044,234.17,234.11,2.14]
[1732711696087,9.41171044,234.16,234.11,2.14]
[1732711696286,10.54827851,234.2,234.11,2.14]
[1732711696486,17.47051894,234.19,234.11,2.14]
[1732711696685,8.05573752,234.18,234.11,2.14]
[1732711696987,17.47051894,234.18,234.11,4.2756]
[1732711697190,9.41478142,234.17,234.11,4.2756]
[1732711697389,9.41478142,234.16,234.11,4.2756]
[1732711697688,9.41478142,234.15,234.11,4.2756]
[1732711697988,10.54827851,234.2,234.11,2.1356]
[1732711698183,17.47262445,234.19,234.12,2.14]
[1732711698486,17.47262445,234.18,234.12,2.14]
[1732711698689,17.47262445,234.17,234.12,4.2755]
[1732711698888,9.41591655,234.16,234.12,4.2755]
[1732711699090,9.41591655,234.15,234.12,2.14]
[1732711699293,10.54827851,234.22,234.13,2.1353]
[1732711699587,17.47639036,234.21,234.12,2.14]
[1732711699790,17.47639036,234.2,234.12,2.14]
[1732711699987,17.47639036,234.19,234.12,2.14]
[1732711700190,8.05845747,234.18,234.12,2.14]
[1732711700391,17.47639036,234.18,234.12,2.14]
[1732711700586,9.41793289,234.17,234.12,2.14]
[1732711700981,9.41793289,234.16,234.12,2.14]
[1732711701189,10.54827851,234.28,234.12,12.68827851]
[1732711701488,17.48323842,234.27,234.13,2.6141]
[1732711701685,17.48323842,234.26,234.14,2.1352]
[1732711701888,17.48323842,234.25,234.13,2.6141]
[1732711702082,17.48323842,234.24,234.13,2.6141]
[1732711702286,17.48323842,234.23,234.13,2.6141]
[1732711702488,9.4215459,234.22,234.13,2.6141]
[1732711702688,9.4215459,234.21,234.13,2.6141]
[1732711702991,12.68237851,234.28,234.15,2.1351]
[1732711703186,17.49069306,234.27,234.15,2.1351]
[1732711703388,17.49069306,234.26,234.15,2.1351]
[1732711703588,17.49069306,234.25,234.15,2.1351]
[1732711703789,8.06529322,234.24,234.15,2.1351]
[1732711703981,17.49069306,234.24,234.15,2.1351]
[1732711704187,17.49069306,234.23,234.15,2.1351]
[1732711704388,12.68237851,234.28,234.15,2.1351]
[1732711704592,17.48296002,234.27,234.16,2.1351]
[1732711704893,17.48296002,234.26,234.17,2.14]
[1732711705192,17.48296002,234.25,234.17,4.275]
[1732711705390,9.42137079,234.24,234.17,4.275]
[1732711705595,9.42137079,234.23,234.17,4.275]
[1732711705795,12.68237851,234.28,234.17,4.275]
[1732711706094,17.4863832,234.27,234.17,4.275]
[1732711706292,6.72522202,234.24,234.17,8.86522202]
[1732711706590,6.72522202,234.22,234.17,2.14]
[1732711707097,12.85,234.3,234.17,2.14]
[1732711707098,12.85,234.3,234.18,6.72522202]
[1732711707393,6.72522202,234.27,234.18,6.72522202]
[1732711707692,6.72522202,234.25,234.18,6.72522202]
[1732711707895,6.72522202,234.25,234.17,2.14]
[1732711707896,9.41879564,234.24,234.17,2.14]
[1732711708100,9.41879564,234.24,234.17,8.86522202]
[1732711708402,9.41879564,234.24,234.18,2.135]
[1732711708694,9.41879564,234.24,234.17,2.14]
[1732711709297,9.41879564,234.24,234.17,4.275]
[1732711709497,6.72522202,234.23,234.17,2.14]
[1732711712198,6.72522202,234.25,234.17,4.275]
[1732711712397,6.72522202,234.25,234.17,2.14]
[1732711712598,9.40485377,234.24,234.17,2.14]
[1732711714603,9.40485377,234.24,234.18,2.1349]
[1732711714800,9.40485377,234.24,234.17,2.14]
[1732711715505,9.40485377,234.24,234.19,2.1349]
[1732711718203,9.40485377,234.23,234.19,2.1349]
[1732711718405,6.72522202,234.24,234.18,2.1349]
[1732711718703,9.40476238,234.23,234.17,2.14]
[1732711719399,6.72522202,234.24,234.17,2.14]
[1732711720005,6.72522202,234.24,234.19,2.1349]
[1732711721198,6.72522202,234.24,234.19,4.2749]
[1732711724611,6.72522202,234.24,234.19,2.14]
[1732711725703,6.72522202,234.24,234.13,3.9337]
[1732711725704,6.72522202,234.2,234.13,2.1354]
[1732711726011,12.85,234.27,234.13,4.2754]
[1732711726012,9.41353327,234.19,234.13,4.2754]
[1732711726211,6.72522202,234.17,234.13,4.2754]
[1732711726904,6.72522202,234.17,234.13,2.14]
[1732711728715,6.72522202,234.17,234.13,4.2754]
[1732711729013,6.72522202,234.18,234.13,4.2754]
[1732711729713,9.41956778,234.17,234.13,4.2754]
[1732711732214,6.72522202,234.18,234.13,4.2754]
[1732711732510,9.41982954,234.17,234.13,4.2754]
[1732711733209,6.72522202,234.18,234.13,4.2754]
[1732711733614,2.1347,234.22,234.13,4.2754]
[1732711733815,17.48051478,234.21,234.13,4.2754]
[1732711734010,6.72522202,234.19,234.13,4.2754]
[1732711734210,9.42015143,234.18,234.13,4.2754]
[1732711735104,9.42015143,234.18,234.13,2.14]
[1732711735311,6.72522202,234.17,234.13,2.14]
[1732711736103,2.1347,234.21,234.13,4.2754]
[1732711736308,6.72522202,234.18,234.13,4.2754]
[1732711736512,9.42083321,234.17,234.13,4.2754]
[1732711740317,9.42083321,234.17,234.13,2.14]
[1732711740719,6.72522202,234.14,234.06,2.5997]
[1732711740920,6.72522202,234.07,234.0,2.14]
[1732711741116,6.72522202,234.03,233.96,2.5512]
[1732711741310,6.72522202,234.01,233.97,2.14]
[1732711741516,6.72522202,234.01,233.98,2.1368]
[1732711742022,6.72522202,234.03,233.98,4.2768]
[1732711742313,12.85,234.11,233.98,2.14]
[1732711742518,6.72522202,234.0,233.98,2.14]
[1732711742717,6.72522202,234.0,233.9,54.24021541]
[1732711742919,6.72522202,233.96,233.92,2.14]
[1732711743518,6.72522202,233.94,233.91,19.95253387]
[1732711743916,6.72522202,233.95,233.91,19.95253387]
[1732711744122,6.72522202,233.92,233.91,17.81253387]
[1732711744416,6.72522202,233.92,233.87,122.22502108]
[1732711744417,6.72522202,233.92,233.87,1.303]
[1732711745022,6.72522202,233.92,233.84,6.72522202]
[1732711745223,6.72522202,233.92,233.86,2.14]
[1732711745726,2.14,234.0,233.86,2.14]
[1732711746025,6.72522202,233.95,233.88,6.72522202]
[1732711746228,6.72522202,233.95,233.86,8.86522202]
[1732711747032,6.72522202,233.91,233.84,6.72522202]
[1732711747327,6.72522202,233.89,233.85,2.14]
[1732711747526,2.1369,233.98,233.86,2.1379]
[1732711747723,6.72522202,233.91,233.85,2.14]
[1732711747928,6.72522202,233.91,233.85,8.86522202]
[1732711748125,1.2206,233.99,233.88,2.1377]
[1732711748324,6.72522202,233.94,233.88,2.1377]
[1732711749129,2.14,234.0,233.87,6.72522202]
[1732711749329,6.72522202,233.96,233.85,2.14]
[1732711749531,6.72522202,233.96,233.88,6.72522202]
[1732711749932,6.72522202,233.96,233.9,2.1375]
[1732711750236,6.72522202,233.96,233.9,4.2775]
[1732711750433,6.72522202,233.96,233.89,6.72522202]
[1732711750731,6.72522202,233.99,233.91,6.72522202]
[1732711751531,6.72522202,233.99,233.91,8.86252202]
[1732711751731,6.72522202,233.97,233.9,2.14]
[1732711751933,6.72522202,233.95,233.9,2.14]
[1732711752830,6.72522202,233.95,233.91,2.14]
[1732711753233,6.72522202,233.97,233.91,2.14]
[1732711753434,6.72522202,233.99,233.91,8.86522202]
[1732711754033,6.72522202,234.01,233.93,6.72522202]
[1732711754232,6.72522202,234.01,233.94,2.1371]
[1732711754628,2.4584,234.06,233.95,2.137]
[1732711754834,6.72522202,234.05,233.96,2.14]
[1732711755337,6.72522202,234.05,233.97,6.72522202]
[1732711755532,6.72522202,234.07,233.99,6.72522202]
[1732711756231,6.72522202,234.07,234.01,2.1365]
[1732711756432,10.5239932,234.1,234.01,4.2765]
[1732711756831,10.5239932,234.1,234.01,2.14]
[1732711757838,12.6596932,234.1,234.01,2.14]
[1732711759441,12.6596932,234.1,234.01,4.2765]
[1732711759636,12.6596932,234.1,234.01,2.14]
[1732711760032,12.6596932,234.1,233.88,10.5239932]
[1732711760033,2.1361,234.06,233.95,2.137]
[1732711760235,10.5239932,234.04,233.96,2.14]
[1732711760634,10.5239932,234.04,233.95,2.137]
[1732711760940,10.5239932,234.04,233.95,4.277]
[1732711761138,12.6602932,234.04,233.95,2.14]
[1732711761341,10.5239932,234.01,233.95,2.14]
[1732711761636,10.5239932,234.01,233.93,2.14]
[1732711761837,12.6601932,234.04,233.95,2.137]
[1732711762041,10.5239932,234.04,233.95,2.137]
[1732711762540,12.6602932,234.04,233.95,2.137]
[1732711762934,10.5239932,234.04,233.96,2.1369]
[1732711764242,10.5239932,234.04,233.97,2.1368]
[1732711764836,10.5239932,233.98,233.8,0.20304]
[1732711765041,10.5239932,233.89,233.8,0.20304]
[1732711765235,10.5239932,233.86,233.8,0.20304]
[1732711765842,12.6618932,233.86,233.8,0.20304]
[1732711767241,10.5239932,233.86,233.8,0.20304]
[1732711767843,10.5239932,233.83,233.8,0.20304]
[1732711768144,12.6639932,233.83,233.8,0.20304]
[1732711768840,10.5239932,233.83,233.8,0.20304]
[1732711769040,2.14,233.84,233.8,0.20304]
[1732711769247,2.14,233.85,233.8,0.20304]
[1732711769545,10.5239932,233.86,233.8,0.20304]